fUST/lending_fUST_20250623
["ID","MTS","AMOUNT","RATE_DAILY","PERIOD"]
[367052854,1750638641945,-489.47,0.00022191,2]
[367052855,1750638641955,-460.0,0.00022191,2]
[367052856,1750638641965,-7046.84,0.00022191,2]
[367052857,1750638641974,-460.0,0.00022191,2]
[367052858,1750638641984,-460.0,0.00022191,2]
[367052859,1750638641993,-460.0,0.00022191,2]
[367052860,1750638642002,-436.66072401,0.00022191,2]
[367052861,1750638642012,-460.0,0.00022191,2]
[367052862,1750638642021,-4727.86,0.00022191,2]
[367052863,1750638642031,-460.0,0.00022191,2]
[367052864,1750638642040,-1763.9,0.00022191,2]
[367052865,1750638642051,-460.0,0.00022191,2]
[367052866,1750638642060,-627.57,0.00022191,2]
[367052867,1750638642070,-1254.06,0.00022191,2]
[367052868,1750638642080,-1051.22,0.00022191,2]
[367052869,1750638642089,-921.21,0.00022191,2]
[367052870,1750638642099,-460.0,0.00022191,2]
[367052871,1750638642108,-3899.38,0.00022191,2]
[367052872,1750638642118,-460.0,0.00022191,2]
[367052873,1750638642127,-567.25,0.00022191,2]
[367052874,1750638642136,-1137.99,0.00022191,2]
[367052875,1750638642145,-945.45,0.00022191,2]
[367052876,1750638642155,-460.0,0.00022191,2]
[367052877,1750638642165,-460.0,0.00022191,2]
[367052878,1750638642174,-250.0,0.00022191,2]
[367052879,1750638642183,-460.0,0.00022191,2]
[367052880,1750638642193,-460.0,0.00022191,2]
[367052881,1750638642202,-460.0,0.00022191,2]
[367052882,1750638642211,-460.0,0.00022191,2]
[367052883,1750638642221,-460.0,0.00022191,2]
[367052884,1750638642230,-487.97,0.00022191,2]
[367052885,1750638642239,-460.0,0.00022191,2]
[367052886,1750638642248,-899.77,0.00022191,2]
[367052887,1750638642257,-681.29,0.00022191,2]
[367052888,1750638642267,-460.0,0.00022191,2]
[367052889,1750638642276,-635.66,0.00022191,2]
[367052890,1750638642286,-293.9483154,0.00022191,2]
[367052891,1750638642295,-488.76,0.00022191,2]
[367052892,1750638642305,-612.4,0.00022191,2]
[367052893,1750638642314,-460.0,0.00022191,2]
[367052894,1750638642323,-2052.05,0.00022191,2]
[367052895,1750638642334,-460.0,0.00022191,2]
[367052896,1750638642343,-6528.88,0.00022191,2]
[367052897,1750638642353,-460.0,0.00022191,2]
[367052898,1750638642362,-595.93,0.00022191,2]
[367052899,1750638642371,-572.33,0.00022191,2]
[367052900,1750638642381,-460.0,0.00022191,2]
[367052901,1750638642390,-2342.37,0.00022191,2]
[367052902,1750638642399,-460.0,0.00022191,2]
[367052903,1750638642409,-623.73,0.00022191,2]
[367052904,1750638642419,-968.96,0.00022191,2]
[367052905,1750638642428,-460.0,0.00022191,2]
[367052906,1750638642438,-460.0,0.00022191,2]
[367052907,1750638642447,-513.66699669,0.00022191,2]
[367052908,1750638642457,-460.0,0.00022191,2]
[367052909,1750638642467,-460.0,0.00022191,2]
[367052910,1750638642476,-1417.56,0.00022191,2]
[367052911,1750638642485,-460.0,0.00022191,2]
[367052912,1750638642494,-460.0,0.00022191,2]
[367052913,1750638642503,-3824.71,0.00022191,2]
[367052914,1750638642512,-347.3427623,0.00022191,2]
[367052915,1750638642522,-343.4,0.00022191,2]
[367052916,1750638642532,-1116.64,0.00022191,2]
[367052917,1750638642541,-465.11,0.00022191,2]
[367052918,1750638642551,-606.66,0.00022191,2]
[367052919,1750638642561,-552.75,0.00022191,2]
[367052920,1750638642570,-2636.2,0.00022191,2]
[367052921,1750638642580,-2406.96,0.00022191,2]
[367052922,1750638642589,-2799.53,0.00022191,2]
[367052923,1750638642598,-460.0,0.00022191,2]
[367052924,1750638642608,-460.0,0.00022191,2]
[367052925,1750638642617,-460.0,0.00022191,2]
[367052926,1750638642627,-460.0,0.00022191,2]
[367052927,1750638642636,-460.0,0.00022191,2]
[367052928,1750638642645,-460.0,0.00022191,2]
[367052929,1750638642654,-460.0,0.00022191,2]
[367052930,1750638642664,-460.0,0.00022191,2]
[367052931,1750638642673,-460.0,0.00022191,2]
[367052932,1750638642682,-601.81174642,0.00022191,2]
[367052933,1750638642870,-549.23,0.00022191,2]
[367052934,1750638642880,-460.0,0.00022191,2]
[367052935,1750638642890,-460.0,0.00022191,2]
[367052936,1750638642900,-621.69,0.00022191,2]
[367052937,1750638642910,-460.0,0.00022191,2]
[367052938,1750638642919,-460.0,0.00022191,2]
[367052939,1750638642930,-460.0,0.00022191,2]
[367052941,1750638642939,-9085.11,0.00022191,2]
[367052943,1750638642949,-1684.64,0.00022191,2]
[367052944,1750638642958,-460.0,0.00022191,2]
[367052945,1750638642967,-1059.16,0.00022191,2]
[367052946,1750638642977,-460.0,0.00022191,2]
[367052948,1750638642986,-460.0,0.00022191,2]
[367052949,1750638642996,-1571.79,0.00022191,2]
[367052950,1750638643007,-460.0,0.00022191,2]
[367052951,1750638643016,-5798.47,0.00022191,2]
[367052953,1750638643026,-460.0,0.00022191,2]
[367052956,1750638643035,-460.0,0.00022191,2]
[367052958,1750638643045,-20915.72,0.00022191,2]
[367052960,1750638643055,-460.0,0.00022191,2]
[367052962,1750638643064,-676.05,0.00022191,2]
[367052963,1750638643073,-3530.71,0.00022191,2]
[367052965,1750638643083,-1368.17,0.00022191,2]
[367052967,1750638643092,-460.0,0.00022191,2]
[367052969,1750638643102,-460.0,0.00022191,2]
[367052970,1750638643111,-460.0,0.00022191,2]
[367052971,1750638643120,-460.0,0.00022191,2]
[367052972,1750638643129,-558.18,0.00022191,2]
[367052973,1750638643139,-460.0,0.00022191,2]
[367052974,1750638643148,-500.0,0.00022214,2]
[367052975,1750638643158,-500.0,0.00022214,2]
[367052976,1750638643167,-500.0,0.00022214,2]
[367052977,1750638643176,-500.0,0.00022218,2]
[367052978,1750638643186,-625.92040111,0.00022218,2]
[367052979,1750638643195,-500.0,0.00022218,2]
[367052980,1750638643205,-1719.59952654,0.00022245,6]
[367052981,1750638643214,-151.0,0.000224,6]
[367052982,1750638643224,-151.0,0.000224,6]
[367052983,1750638643233,-2302.2740815,0.00022409,2]
[367052984,1750638643243,-1719.59952654,0.00022417,7]
[367052985,1750638643252,-489.04,0.00022464,2]
[367052986,1750638643263,-460.0,0.00022464,2]
[367052987,1750638643272,-460.0,0.00022464,2]
[367052988,1750638643283,-839.43,0.00022464,2]
[367052989,1750638643293,-839.43,0.00022464,2]
[367052990,1750638643302,-839.43,0.00022464,2]
[367052991,1750638643312,-839.43,0.00022464,2]
[367052992,1750638643321,-839.43,0.00022464,2]
[367052993,1750638643330,-460.0,0.00022464,2]
[367052994,1750638643339,-2017.92,0.00022464,2]
[367052995,1750638643348,-1895.47,0.00022464,2]
[367052996,1750638643358,-268.72212638,0.00022464,2]
[367052997,1750638643367,-7138.94,0.00022464,2]
[367052998,1750638643376,-1993.69,0.00022464,2]
[367052999,1750638643386,-485.41,0.00022464,2]
[367053000,1750638643394,-1253.05,0.00022464,2]
[367053001,1750638643403,-460.0,0.00022464,2]
[367053002,1750638643413,-11497.33,0.00022464,2]
[367053003,1750638643422,-4845.46,0.00022464,2]
[367053004,1750638643432,-538.89,0.00022464,2]
[367053005,1750638643441,-520.04379335,0.00022464,2]
[367053006,1750638643451,-3307.71,0.00022464,2]
[367053007,1750638643460,-460.0,0.00022464,2]
[367053008,1750638643470,-5119.58,0.00022464,2]
[367053009,1750638643479,-1025.12,0.00022465,2]
[367053010,1750638643489,-514.87927659,0.00022465,2]
[367053011,1750638643499,-460.0,0.00022465,2]
[367053012,1750638643508,-460.0,0.00022465,2]
[367053013,1750638643520,-460.0,0.00022465,2]
[367053014,1750638643530,-460.0,0.00022465,2]
[367053015,1750638643540,-460.0,0.00022465,2]
[367053017,1750638643550,-315.24485215,0.00022465,2]
[367053019,1750638643560,-460.0,0.00022465,2]
[367053021,1750638643569,-554.94,0.00022465,2]
[367053023,1750638643579,-460.0,0.00022465,2]
[367053025,1750638643588,-460.0,0.00022465,2]
[367053027,1750638643598,-619.72,0.00022465,2]
[367053028,1750638643607,-460.0,0.00022465,2]
[367053029,1750638643617,-460.0,0.00022465,2]
[367053030,1750638643626,-460.0,0.00022465,2]
[367053031,1750638643636,-460.0,0.00022465,2]
[367053032,1750638643645,-460.0,0.00022465,2]
[367053033,1750638643655,-436.30383904,0.00022465,2]
[367053034,1750638643666,-460.0,0.00022465,2]
[367053035,1750638643676,-460.0,0.00022465,2]
[367053036,1750638643686,-460.0,0.00022465,2]
[367053037,1750638643695,-460.0,0.00022465,2]
[367053038,1750638643704,-460.0,0.00022465,2]
[367053039,1750638643714,-476.89510938,0.00022465,2]
[367053040,1750638643724,-460.0,0.00022465,2]
[367053041,1750638643735,-460.0,0.00022465,2]
[367053042,1750638643747,-460.0,0.00022465,2]
[367053043,1750638643757,-306.47538347,0.00022465,2]
[367053044,1750638643765,-460.0,0.00022465,2]
[367053045,1750638643775,-460.0,0.00022465,2]
[367053046,1750638643784,-460.0,0.00022465,2]
[367053047,1750638643794,-460.0,0.00022465,2]
[367053048,1750638643804,-460.0,0.00022465,2]
[367053049,1750638643814,-460.0,0.00022465,2]
[367053050,1750638643823,-460.0,0.00022465,2]
[367053051,1750638643832,-294.35926198,0.00022465,2]
[367053052,1750638643840,-460.0,0.00022465,2]
[367053053,1750638643849,-460.0,0.00022465,2]
[367053054,1750638643859,-460.0,0.00022465,2]
[367053055,1750638643869,-460.0,0.00022465,2]
[367053056,1750638643879,-460.0,0.00022465,2]
[367053057,1750638643891,-655.81,0.00022465,2]
[367053058,1750638643900,-359.54710579,0.00022465,2]
[367053059,1750638643910,-460.0,0.00022465,2]
[367053060,1750638643919,-460.0,0.00022465,2]
[367053061,1750638643928,-460.0,0.00022465,2]
[367053062,1750638643937,-460.0,0.00022465,2]
[367053063,1750638643947,-460.0,0.00022465,2]
[367053064,1750638643957,-460.0,0.00022465,2]
[367053065,1750638643966,-460.0,0.00022465,2]
[367053066,1750638643975,-460.0,0.00022465,2]
[367053067,1750638643985,-460.0,0.00022465,2]
[367053068,1750638643995,-536.62,0.00022465,2]
[367053069,1750638644004,-460.0,0.00022465,2]
[367053070,1750638644013,-954.11,0.00022465,2]
[367053071,1750638644023,-460.0,0.00022465,2]
[367053072,1750638644032,-460.0,0.00022465,2]
[367053073,1750638644042,-460.0,0.00022465,2]
[367053074,1750638644051,-403.30541297,0.00022465,2]
[367053075,1750638644062,-555.76120003,0.00022465,2]
[367053076,1750638644071,-642.19,0.00022465,2]
[367053077,1750638644081,-460.0,0.00022465,2]
[367053078,1750638644089,-560.88,0.00022465,2]
[367053079,1750638644099,-1131.64,0.00022465,2]
[367053080,1750638644107,-460.0,0.00022465,2]
[367053081,1750638644117,-460.0,0.00022465,2]
[367053082,1750638644126,-460.0,0.00022465,2]
[367053083,1750638644135,-460.0,0.00022465,2]
[367053084,1750638644145,-460.0,0.00022465,2]
[367053085,1750638644155,-460.0,0.00022465,2]
[367053086,1750638644163,-460.0,0.00022465,2]
[367053087,1750638644172,-460.0,0.00022465,2]
[367053088,1750638644181,-460.0,0.00022465,2]
[367053089,1750638644190,-460.0,0.00022465,2]
[367053090,1750638644199,-460.0,0.00022465,2]
[367053091,1750638644208,-460.0,0.00022465,2]
[367053092,1750638644218,-1675.14,0.00022465,2]
[367053093,1750638644227,-460.0,0.00022465,2]
[367053094,1750638644236,-1463.52,0.00022465,2]
[367053095,1750638644245,-460.0,0.00022465,2]
[367053096,1750638644254,-460.0,0.00022465,2]
[367053097,1750638644263,-460.0,0.00022465,2]
[367053098,1750638644272,-692.05,0.00022465,2]
[367053099,1750638644281,-460.0,0.00022465,2]
[367053100,1750638644290,-460.0,0.00022465,2]
[367053101,1750638644300,-460.0,0.00022465,2]
[367053102,1750638644309,-460.0,0.00022465,2]
[367053103,1750638644318,-461.0,0.00022465,2]
[367053104,1750638644328,-460.0,0.00022465,2]
[367053105,1750638644337,-712.13,0.00022465,2]
[367053106,1750638644346,-460.0,0.00022465,2]
[367053107,1750638644356,-460.0,0.00022465,2]
[367053108,1750638644365,-460.0,0.00022465,2]
[367053109,1750638644374,-651.84,0.00022465,2]
[367053110,1750638644383,-566.0,0.00022465,2]
[367053111,1750638644393,-460.0,0.00022465,2]
[367053112,1750638644403,-771.45,0.00022465,2]
[367053113,1750638644412,-542.86,0.00022465,2]
[367053114,1750638644422,-479.83177828,0.00022465,2]
[367053115,1750638644431,-460.0,0.00022465,2]
[367053116,1750638644440,-460.0,0.00022465,2]
[367053117,1750638644449,-460.0,0.00022465,2]
[367053118,1750638644459,-460.0,0.00022465,2]
[367053119,1750638644468,-1094.45,0.00022465,2]
[367053120,1750638644478,-460.0,0.00022465,2]
[367053121,1750638644487,-460.0,0.00022465,2]
[367053122,1750638644497,-460.0,0.00022465,2]
[367053123,1750638644506,-461.061973,0.00022465,2]
[367053124,1750638644515,-460.0,0.00022465,2]
[367053125,1750638644525,-460.0,0.00022465,2]
[367053126,1750638644534,-1590.2,0.00022465,2]
[367053127,1750638644544,-460.0,0.00022465,2]
[367053128,1750638644554,-361.00997491,0.00022465,2]
[367053129,1750638644564,-490.25529439,0.00022465,2]
[367053130,1750638644573,-610.64,0.00022465,2]
[367053131,1750638644582,-585.96600534,0.00022465,2]
[367053132,1750638644592,-460.0,0.00022465,2]
[367053133,1750638644600,-698.88,0.00022465,2]
[367053134,1750638644609,-460.0,0.00022465,2]
[367053135,1750638644618,-460.0,0.00022465,2]
[367053136,1750638644627,-460.0,0.00022465,2]
[367053137,1750638644636,-1081.03,0.00022465,2]
[367053138,1750638644646,-1148.78,0.00022465,2]
[367053139,1750638644655,-1200.79,0.00022465,2]
[367053140,1750638644664,-693.42,0.00022465,2]
[367053141,1750638644673,-3999.65,0.00022465,2]
[367053142,1750638644682,-918.11,0.00022465,2]
[367053143,1750638644691,-820.25,0.00022465,2]
[367053144,1750638644700,-435.83922637,0.00022465,2]
[367053145,1750638644709,-460.0,0.00022465,2]
[367053146,1750638644718,-460.0,0.00022465,2]
[367053147,1750638644728,-460.0,0.00022465,2]
[367053148,1750638644737,-460.0,0.00022465,2]
[367053149,1750638644748,-460.0,0.00022465,2]
[367053150,1750638644757,-460.0,0.00022465,2]
[367053151,1750638644766,-889.03,0.00022465,2]
[367053152,1750638644775,-460.0,0.00022465,2]
[367053153,1750638644786,-1131.92,0.00022465,2]
[367053154,1750638644795,-460.0,0.00022465,2]
[367053155,1750638644804,-460.0,0.00022465,2]
[367053156,1750638644814,-460.0,0.00022465,2]
[367053157,1750638644823,-572.01,0.00022465,2]
[367053158,1750638644832,-460.0,0.00022465,2]
[367053159,1750638644841,-460.0,0.00022465,2]
[367053160,1750638644850,-460.0,0.00022465,2]
[367053161,1750638644861,-460.0,0.00022465,2]
[367053162,1750638644870,-506.74,0.00022465,2]
[367053163,1750638644879,-460.0,0.00022465,2]
[367053164,1750638644888,-460.0,0.00022465,2]
[367053165,1750638644897,-854.01,0.00022465,2]
[367053166,1750638644906,-460.0,0.00022465,2]
[367053167,1750638644915,-377.80029078,0.00022465,2]
[367053168,1750638644924,-460.0,0.00022465,2]
[367053169,1750638644934,-460.0,0.00022465,2]
[367053170,1750638644943,-460.0,0.00022465,2]
[367053171,1750638644952,-460.0,0.00022465,2]
[367053172,1750638644961,-1287.58,0.00022465,2]
[367053173,1750638644970,-460.0,0.00022465,2]
[367053174,1750638644979,-460.0,0.00022465,2]
[367053175,1750638644988,-460.0,0.00022465,2]
[367053176,1750638644997,-460.0,0.00022465,2]
[367053177,1750638645006,-460.0,0.00022465,2]
[367053178,1750638645015,-2533.93,0.00022465,2]
[367053179,1750638645024,-460.0,0.00022465,2]
[367053180,1750638645033,-460.0,0.00022465,2]
[367053181,1750638645042,-460.0,0.00022465,2]
[367053182,1750638645051,-460.0,0.00022465,2]
[367053183,1750638645060,-460.0,0.00022465,2]
[367053184,1750638645069,-460.0,0.00022465,2]
[367053185,1750638645079,-460.0,0.00022465,2]
[367053186,1750638645088,-917.6,0.00022465,2]
[367053187,1750638645097,-460.0,0.00022465,2]
[367053188,1750638645106,-460.0,0.00022465,2]
[367053189,1750638645115,-1000.0,0.00022465,2]
[367053190,1750638645125,-460.0,0.00022465,2]
[367053191,1750638645182,-1704.99,0.00022465,2]
[367053192,1750638645192,-460.0,0.00022465,2]
[367053193,1750638645201,-460.0,0.00022465,2]
[367053194,1750638645210,-460.0,0.00022465,2]
[367053195,1750638645220,-460.0,0.00022465,2]
[367053196,1750638645229,-460.0,0.00022465,2]
[367053197,1750638645238,-460.0,0.00022465,2]
[367053198,1750638645246,-460.0,0.00022465,2]
[367053199,1750638645255,-460.0,0.00022465,2]
[367053200,1750638645264,-151.0,0.00022465,7]
[367053201,1750638645274,-460.0,0.00022465,2]
[367053202,1750638645285,-460.0,0.00022465,2]
[367053203,1750638645295,-460.0,0.00022465,2]
[367053204,1750638645305,-460.0,0.00022465,2]
[367053205,1750638645314,-460.0,0.00022465,2]
[367053206,1750638645324,-1515.28,0.00022465,2]
[367053207,1750638645334,-971.32,0.00022465,2]
[367053208,1750638645344,-1438.29,0.00022465,2]
[367053209,1750638645353,-460.0,0.00022465,2]
[367053210,1750638645362,-151.0,0.00022465,7]
[367053211,1750638645372,-151.0,0.00022465,7]
[367053212,1750638645382,-460.0,0.00022465,2]
[367053213,1750638645392,-310.0,0.00022465,2]
[367053214,1750638645402,-395.623205,0.00022465,7]
[367053215,1750638645412,-460.0,0.00022465,2]
[367053216,1750638645422,-395.623205,0.00022465,7]
[367053217,1750638645431,-460.0,0.00022465,2]
[367053218,1750638645441,-460.0,0.00022465,2]
[367053219,1750638645451,-460.0,0.00022465,2]
[367053220,1750638645461,-460.0,0.00022465,2]
[367053221,1750638645471,-460.0,0.00022465,2]
[367053222,1750638645481,-460.0,0.00022465,2]
[367053223,1750638645491,-460.0,0.00022465,2]
[367053224,1750638645501,-747.79,0.00022465,2]
[367053225,1750638645511,-460.0,0.00022465,2]
[367053226,1750638645521,-460.0,0.00022465,2]
[367053227,1750638645530,-151.0,0.00022465,7]
[367053228,1750638645540,-3267.97,0.00022465,2]
[367053229,1750638645551,-460.0,0.00022465,2]
[367053230,1750638645560,-477.65,0.00022465,2]
[367053231,1750638645570,-460.0,0.00022465,2]
[367053232,1750638645580,-1619.39,0.00022465,2]
[367053233,1750638645591,-1736.46,0.00022465,2]
[367053234,1750638645601,-521.58,0.00022465,2]
[367053235,1750638645610,-460.0,0.00022465,2]
[367053236,1750638645620,-554.14,0.00022465,2]
[367053237,1750638645629,-460.0,0.00022465,2]
[367053238,1750638645639,-1364.62,0.00022465,2]
[367053239,1750638645647,-460.0,0.00022465,2]
[367053240,1750638645657,-460.0,0.00022465,2]
[367053241,1750638645667,-724.19,0.00022465,2]
[367053242,1750638645677,-960.82,0.00022465,2]
[367053243,1750638645686,-640.77,0.00022465,2]
[367053244,1750638645696,-336.92037551,0.00022465,2]
[367053245,1750638645709,-413.61036806,0.00022465,2]
[367053246,1750638645718,-498.0,0.00022465,2]
[367053247,1750638645728,-460.0,0.00022465,2]
[367053248,1750638645737,-280.76951866,0.00022465,2]
[367053249,1750638645750,-5189.08,0.00022465,2]
[367053250,1750638645760,-223.58733939,0.00022465,2]
[367053251,1750638645769,-696.57,0.00022465,2]
[367053252,1750638645778,-151.0,0.00022465,7]
[367053254,1750638645790,-460.0,0.00022465,2]
[367053255,1750638645799,-460.0,0.00022465,2]
[367053256,1750638645809,-460.0,0.00022465,2]
[367053257,1750638645820,-211.792391,0.00022465,7]
[367053258,1750638645829,-2361.2,0.00022465,2]
[367053259,1750638645839,-814.08,0.00022465,2]
[367053260,1750638645848,-460.0,0.00022465,2]
[367053261,1750638645858,-541.7,0.00022465,2]
[367053262,1750638645866,-151.0,0.00022465,7]
[367053264,1750638645876,-211.792391,0.00022465,7]
[367053265,1750638645886,-460.0,0.00022465,2]
[367053266,1750638645895,-151.0,0.00022465,7]
[367053267,1750638645904,-151.0,0.00022465,7]
[367053268,1750638645915,-460.0,0.00022465,2]
[367053269,1750638645924,-396.4669905,0.00022465,2]
[367053270,1750638645933,-151.0,0.00022465,7]
[367053271,1750638645942,-503.16,0.00022465,2]
[367053272,1750638645953,-460.0,0.00022465,2]
[367053274,1750638645962,-3001.79,0.00022465,2]
[367053275,1750638645971,-460.0,0.00022465,2]
[367053276,1750638645981,-460.0,0.00022465,2]
[367053277,1750638645990,-219.007959,0.00022465,7]
[367053278,1750638645999,-1261.66,0.00022465,2]
[367053279,1750638646008,-460.0,0.00022465,2]
[367053281,1750638646017,-460.0,0.00022465,2]
[367053283,1750638646027,-6482.55,0.00022465,2]
[367053285,1750638646036,-2018.71,0.00022465,2]
[367053286,1750638646046,-460.0,0.00022465,2]
[367053287,1750638646056,-460.0,0.00022465,2]
[367053288,1750638646065,-498.37210236,0.00022465,2]
[367053289,1750638646075,-1281.64,0.00022465,2]
[367053290,1750638646085,-460.0,0.00022465,2]
[367053291,1750638646094,-644.37,0.00022465,2]
[367053292,1750638646104,-889.12,0.00022465,2]
[367053293,1750638646113,-460.0,0.00022465,2]
[367053294,1750638646122,-460.0,0.00022465,2]
[367053295,1750638646131,-536.72587347,0.00022465,2]
[367053296,1750638646141,-505.92269833,0.00022465,2]
[367053297,1750638646150,-476.06,0.00022465,2]
[367053298,1750638646160,-460.0,0.00022465,2]
[367053300,1750638646169,-802.53,0.00022465,2]
[367053302,1750638646178,-475.31,0.00022465,2]
[367053304,1750638646187,-1399.87,0.00022465,2]
[367053306,1750638646196,-886.91,0.00022465,2]
[367053308,1750638646206,-2666.6,0.00022465,2]
[367053310,1750638646215,-460.0,0.00022465,2]
[367053312,1750638646225,-460.0,0.00022465,2]
[367053314,1750638646234,-460.0,0.00022465,2]
[367053316,1750638646243,-700.77,0.00022465,2]
[367053318,1750638646253,-5239.0,0.00022465,2]
[367053320,1750638646263,-460.0,0.00022465,2]
[367053322,1750638646272,-676.48,0.00022465,2]
[367053324,1750638646282,-460.0,0.00022465,2]
[367053326,1750638646291,-460.0,0.00022465,2]
[367053328,1750638646299,-794.07,0.00022465,2]
[367053330,1750638646308,-151.0,0.00022465,7]
[367053332,1750638646318,-1562.8,0.00022465,2]
[367053334,1750638646327,-460.0,0.00022465,2]
[367053336,1750638646337,-525.58,0.00022465,2]
[367053338,1750638646346,-489.47,0.00022465,2]
[367053340,1750638646355,-301.96188241,0.00022465,2]
[367053342,1750638646365,-7046.84,0.00022465,2]
[367053344,1750638646374,-460.0,0.00022465,2]
[367053346,1750638646383,-460.0,0.00022465,2]
[367053347,1750638646392,-460.0,0.00022465,2]
[367053348,1750638646402,-460.0,0.00022465,2]
[367053349,1750638646412,-4727.86,0.00022465,2]
[367053350,1750638646421,-460.0,0.00022465,2]
[367053351,1750638646431,-1763.9,0.00022465,2]
[367053353,1750638646440,-460.0,0.00022465,2]
[367053355,1750638646449,-1254.06,0.00022465,2]
[367053356,1750638646458,-627.57,0.00022465,2]
[367053359,1750638646467,-1051.22,0.00022465,2]
[367053360,1750638646477,-151.0,0.00022465,7]
[367053361,1750638646486,-921.21,0.00022465,2]
[367053362,1750638646496,-340.45374701,0.00022465,2]
[367053363,1750638646505,-155.434656,0.00022465,7]
[367053364,1750638646515,-3899.38,0.00022465,2]
[367053365,1750638646524,-767.530591,0.00022465,7]
[367053366,1750638646534,-460.0,0.00022465,2]
[367053367,1750638646543,-567.25,0.00022465,2]
[367053368,1750638646553,-166.915495,0.00022465,7]
[367053369,1750638646563,-767.530591,0.00022465,7]
[367053370,1750638646573,-1137.99,0.00022465,2]
[367053371,1750638646583,-945.45,0.00022465,2]
[367053372,1750638646593,-166.915495,0.00022465,7]
[367053373,1750638646603,-460.0,0.00022465,2]
[367053374,1750638646613,-460.0,0.00022465,2]
[367053375,1750638646622,-460.0,0.00022465,2]
[367053376,1750638646632,-460.0,0.00022465,2]
[367053377,1750638646641,-460.0,0.00022465,2]
[367053378,1750638646651,-460.0,0.00022465,2]
[367053379,1750638646660,-487.97,0.00022465,2]
[367053380,1750638646670,-460.0,0.00022465,2]
[367053381,1750638646679,-899.77,0.00022465,2]
[367053382,1750638646689,-681.29,0.00022465,2]
[367053383,1750638646698,-460.0,0.00022465,2]
[367053384,1750638646708,-635.66,0.00022465,2]
[367053385,1750638646717,-488.76,0.00022465,2]
[367053386,1750638646727,-612.4,0.00022465,2]
[367053387,1750638646742,-181.76914802,0.00022465,2]
[367053388,1750638646754,-151.0,0.00022465,7]
[367053389,1750638646763,-2052.05,0.00022465,2]
[367053390,1750638646773,-460.0,0.00022465,2]
[367053391,1750638646782,-6528.88,0.00022465,2]
[367053392,1750638646793,-460.0,0.00022465,2]
[367053393,1750638646802,-595.93,0.00022465,2]
[367053394,1750638646813,-572.33,0.00022465,2]
[367053395,1750638646823,-460.0,0.00022465,2]
[367053396,1750638646833,-2342.37,0.00022465,2]
[367053397,1750638646842,-460.0,0.00022465,2]
[367053398,1750638646851,-623.73,0.00022465,2]
[367053399,1750638646860,-968.96,0.00022465,2]
[367053400,1750638646869,-460.0,0.00022465,2]
[367053401,1750638646878,-300.480369,0.00022465,7]
[367053402,1750638646887,-300.480369,0.00022465,7]
[367053403,1750638646896,-4838.813295,0.00022465,7]
[367053404,1750638646905,-460.0,0.00022465,2]
[367053405,1750638646915,-460.0,0.00022465,2]